Workbook

Sheet Customers2 (hidden)
A1: Employee Responsible | B1: Customer | C1: Phone | D1: Email
A2: Pete | B2: Allan, Collin | C2: no phone number online | D2: jc_allan@comcast.net | E2: Yes
A3: Bruce | B3: Asay, Jason | C3: 787-0454 | D3: asayjason@gmail.com | E3: Email comprehensive bid
A4: Pete | B4: Brown, Nad | C4: 489-7707 | D4: nadbmarb@gmail.com
A5: Bruce | B5: Croft, Harvey | C5: 489-6084 | E5: Fax bid to 801-766-0206
A6: Bruce | B6: Dahl, Jordan | C6: 801-372-8806 | E6: No answer. Left message
A7: Pete | B7: Estes, Ben | C7: no phone number online
A8: Pete | B8: Frischknecht, Jon | C8: no phone number online | D8: susanfrisch@gmail.com | E8: Yes | F8: Wait to hear back
A9: Bruce | B9: Gardner, Ben | C9: no phone number online | E9: Yes
A10: Bruce | B10: Garlitz, Parker | C10: 491-9625 | E10: Yes
A11: Pete | B11: Gillett, Tim | C11: 489-5590 | D11: gillettfamily@yahoo.com | E11: Not sure. They'll get back to us
A12: Bruce | B12: Goodsell, Jeff | C12: 491-0521 | D12: jeff@jeffgoodsellart.com | E12: Yes | F12: See email
A13: Pete | B13: Hagens | C13: 491-8991 | D13: juliemhagen@gmail.com | E13: No
A14: Pete | B14: Iris | C14: 489-6631 | E14: Yes
A15: Bruce | B15: Johnson, Clay | C15: 491-0965 | D15: clayton3_4@msn.com
A16: Pete | B16: Jones, Ruston | C16: 491-3291 | D16: natruston@aol.com
A17: Pete | B17: Kreihbel | C17: -
A18: Bruce | B18: Lambert, Brian | C18: 489-4336 | D18: summercampranch@yahoo.com | E18: Yes
A19: Bruce | B19: Mahin, Dian | C19: 489-3392 | D19: dian_69@msn.com | E19: Yes | F19: Whenever we normally start
A20: Bruce | B20: Maturlo, Susan | C20: 319-1223 | D20: bozk@aol.com | E20: Yes | F20: Fertilize late march. Begin mowing beginning of April
A21: Bruce | B21: McKellar, Jan | C21: 801-373-3363 | E21: Yes | F21: Aerate for free
A22: Pete | B22: Olsen, Steve | C22: 491-8250 | D22: solsen@emcity.org | E22: Yes | F22: Mid to late April
A23: Bruce | B23: Papa Murphy's | C23: 489-8968 | D23: ferg4us9@aol.com | E23: Yes
A24: Pete | B24: Peterson, Richard | C24: 491-9492 | E24: Yes | F24: Mid to late April
A25: Bruce | B25: Sabin, Bob | C25: 491-4289 | D25: eskimos@comcast.net | E25: Yes
A26: Pete | B26: Welch, Arthur | C26: no phone number online | E26: Yes | F26: Mid to late April
A27: Pete | B27: West, Linda | C27: 491-9061 | D27: wlinda816@hotmail.com | E27: Yes
A28: Bruce | B28: Winnie, Daniel | C28: 489-4330 | E28: Yes | F28: She'll call when they want us to start
A29: Bruce | B29: Wolfgramm, Mark | C29: 319-7947
A30: Bruce | B30: Thomas, Dick | C30: 801-489-7674 | E30: Yes | F30: No aerating. Start beginning of April
A31: Bruce | B31: Thomsen | E31: Yes
A32: Bruce | B32: Tudor | C32: 801-489-6323
A33: Bruce | B33: Audra Call | E33: Yes | F33: Mowing: $25, Spraying: $30, Weeding: $15/hr
A34: Bruce | B34: Garrett Watkins | D34: watkinsfam@hotmail.com | E34: Edging only. Only do the front. $15/month (Mahin's neighbor)
A36: Bids Outstanding
A37: Bruce | B37: Norm Eakins | C37: 91 S. 450 W. Springville | D37: 801-361-8325 | E37: 40

Sheet Work
A1: WorkID | B1: Date | C1: Customer | D1: Service | E1: Amount | F1: Bruce | G1: Ryan | H1: LOM | I1: Check Number
B2: 2011-11-25 | C2: Lance Kirkland | D2: Credit | E2: -55 | I2: 4582
B3: 2011-11-25 | C3: Lance Kirkland | D3: Credit | E3: -55 | I3: 4567
... 1 more rows

Sheet Billed
A1: WorkID | B1: Date | C1: Customer | D1: Service | E1: Amount | F1: Bruce | G1: Ryan | H1: LOM | I1: Check Number
B2: 2011-11-28 | C2: Brian Jensen | D2: Mowing | E2: 55 | F2: 36.66666667 | G2: 0 | H2: 18.33333333
B3: 2011-11-02 | C3: Daniel Childs | D3: Mowing | E3: 30 | F3: 0 | G3: 20 | H3: 10
B4: 2011-11-09 | C4: Daniel Childs | D4: Mowing | E4: 30 | F4: 20 | G4: 0 | H4: 10
B5: 2011-11-16 | C5: Daniel Childs | D5: Mowing | E5: 30 | F5: 10 | G5: 10 | H5: 10
B6: 2011-11-23 | C6: Daniel Childs | D6: Mowing | E6: 30 | F6: 0 | G6: 20 | H6: 10
B7: 2011-11-30 | C7: Daniel Childs | D7: Mowing | E7: 30 | F7: 10 | G7: 10 | H7: 10
B8: 2011-11-02 | C8: Dian Parks | D8: Mowing | E8: 30 | F8: 0 | G8: 20 | H8: 10
B9: 2011-11-09 | C9: Dian Parks | D9: Mowing | E9: 30 | F9: 20 | G9: 0 | H9: 10
B10: 2011-11-16 | C10: Dian Parks | D10: Mowing | E10: 30 | F10: 10 | G10: 10 | H10: 10
B11: 2011-11-23 | C11: Dian Parks | D11: Mowing | E11: 30 | F11: 0 | G11: 20 | H11: 10
B12: 2011-11-30 | C12: Dian Parks | D12: Mowing | E12: 30 | F12: 10 | G12: 10 | H12: 10
B13: 2011-11-02 | C13: Garrett Wall | D13: Edging | E13: 3.75 | F13: 1.25 | G13: 1.25 | H13: 1.25
B14: 2011-11-09 | C14: Garrett Wall | D14: Edging | E14: 3.75 | F14: 1.25 | G14: 1.25 | H14: 1.25
B15: 2011-11-16 | C15: Garrett Wall | D15: Edging | E15: 3.75 | F15: 1.25 | G15: 1.25 | H15: 1.25
B16: 2011-11-23 | C16: Garrett Wall | D16: Edging | E16: 3.75 | F16: 2.5 | G16: 0 | H16: 1.25
B17: 2011-11-30 | C17: Garrett Wall | D17: Edging | E17: 3.75 | F17: 1.25 | G17: 1.25 | H17: 1.25
B18: 2011-11-02 | C18: Harvey Maw | D18: Mowing | E18: 30 | F18: 10 | G18: 10 | H18: 10
B19: 2011-11-09 | C19: Harvey Maw | D19: Mowing | E19: 30 | F19: 0 | G19: 20 | H19: 10
B20: 2011-11-16 | C20: Harvey Maw | D20: Mowing | E20: 30 | F20: 10 | G20: 10 | H20: 10
B21: 2011-11-23 | C21: Harvey Maw | D21: Mowing | E21: 30 | F21: 20 | G21: 0 | H21: 10
B22: 2011-11-30 | C22: Harvey Maw | D22: Mowing | E22: 30 | F22: 10 | G22: 10 | H22: 10
B23: 2011-11-02 | C23: Jan Temple | D23: Mowing | E23: 30 | F23: 20 | G23: 0 | H23: 10
B24: 2011-11-09 | C24: Jan Temple | D24: Mowing | E24: 30 | F24: 20 | G24: 0 | H24: 10
B25: 2011-11-16 | C25: Jan Temple | D25: Mowing | E25: 30 | F25: 8.333333333 | G25: 10 | H25: 10
B26: 2011-11-23 | C26: Jan Temple | D26: Mowing | E26: 30 | F26: 20 | G26: 0 | H26: 10
B27: 2011-11-04 | C27: Jeff Dewey | D27: Mowing | E27: 25 | F27: 16.66666667 | G27: 0 | H27: 8.333333333
B28: 2011-11-11 | C28: Jeff Dewey | D28: Mowing | E28: 25 | F28: 16.66666667 | G28: 0 | H28: 8.333333333
B29: 2011-11-18 | C29: Jeff Dewey | D29: Mowing | E29: 25 | F29: 8.333333333 | G29: 8.333333333 | H29: 8.333333333
B30: 2011-11-25 | C30: Jeff Dewey | D30: Mowing | E30: 25 | F30: 16.66666667 | G30: 0 | H30: 8.333333333
B31: 2011-11-07 | C31: John Paulsen | D31: Mowing | E31: 45 | F31: 30 | G31: 0 | H31: 15
B32: 2011-11-14 | C32: John Paulsen | D32: Mowing | E32: 45 | F32: 0 | G32: 30 | H32: 15
B33: 2011-11-21 | C33: John Paulsen | D33: Mowing | E33: 45 | F33: 15 | G33: 15 | H33: 15
B34: 2011-11-28 | C34: John Paulsen | D34: Mowing | E34: 45 | F34: 30 | G34: 0 | H34: 15
B35: 2011-11-07 | C35: Linda Brockbank | D35: Mowing | E35: 25 | F35: 16.66666667 | G35: 0 | H35: 8.333333333
B36: 2011-11-14 | C36: Linda Brockbank | D36: Mowing | E36: 25 | F36: 0 | G36: 16.66666667 | H36: 8.333333333
B37: 2011-11-21 | C37: Linda Brockbank | D37: Mowing | E37: 25 | F37: 0 | G37: 16.66666667 | H37: 8.333333333
B38: 2011-11-28 | C38: Linda Brockbank | D38: Mowing | E38: 25 | F38: 16.66666667 | G38: 0 | H38: 8.333333333
B39: 2011-11-28 | C39: Richard Allen | D39: Mowing | E39: 30 | F39: 20 | G39: 0 | H39: 10
B40: 2011-11-04 | C40: Rusty Jenkins | D40: Mowing | E40: 30 | F40: 20 | G40: 0 | H40: 10
B41: 2011-11-11 | C41: Rusty Jenkins | D41: Mowing | E41: 30 | F41: 20 | G41: 0 | H41: 10
B42: 2011-11-18 | C42: Rusty Jenkins | D42: Mowing | E42: 30 | F42: 20 | G42: 0 | H42: 10
B43: 2011-11-25 | C43: Rusty Jenkins | D43: Mowing | E43: 30 | F43: 10 | G43: 10 | H43: 10
B44: 2011-11-18 | C44: Shirley Clark | D44: Edging | E44: 7.5 | F44: 5 | G44: 0 | H44: 2.5
B45: 2011-11-25 | C45: Shirley Clark | D45: Edging | E45: 7.5 | F45: 2.5 | G45: 2.5 | H45: 2.5
B46: 2011-11-04 | C46: Susan Singley | D46: Mowing | E46: 30 | F46: 20 | G46: 0 | H46: 10
B47: 2011-11-11 | C47: Susan Singley | D47: Mowing | E47: 30 | F47: 0 | G47: 20 | H47: 10
B48: 2011-11-18 | C48: Susan Singley | D48: Mowing | E48: 30 | F48: 0 | G48: 20 | H48: 10
B49: 2011-11-25 | C49: Susan Singley | D49: Mowing | E49: 30 | F49: 10 | G49: 10 | H49: 10
B50: 2011-11-04 | C50: Suzanne Ricks | D50: Edging | E50: 5 | F50: 3.333333333 | G50: 0 | H50: 1.666666667
B51: 2011-11-11 | C51: Suzanne Ricks | D51: Edging | E51: 5 | F51: 0 | G51: 3.333333333 | H51: 1.666666667
B52: 2011-11-18 | C52: Suzanne Ricks | D52: Edging | E52: 5 | F52: 0 | G52: 3.333333333 | H52: 1.666666667
B53: 2011-11-25 | C53: Suzanne Ricks | D53: Edging | E53: 5 | F53: 1.666666667 | G53: 1.666666667 | H53: 1.666666667
B54: 2011-11-02 | C54: Bob Kopps | D54: Mowing | E54: 20 | F54: 13.33333333 | G54: 0 | H54: 6.666666667
B55: 2011-11-09 | C55: Bob Kopps | D55: Mowing | E55: 20 | F55: 0 | G55: 13.33333333 | H55: 6.666666667
B56: 2011-11-16 | C56: Bob Kopps | D56: Mowing | E56: 20 | F56: 6.666666667 | G56: 6.666666667 | H56: 6.666666667
B57: 2011-11-23 | C57: Bob Kopps | D57: Mowing | E57: 20 | F57: 6.666666667 | G57: 6.666666667 | H57: 6.666666667
B58: 2011-11-30 | C58: Bob Kopps | D58: Mowing | E58: 20 | F58: 6.666666667 | G58: 6.666666667 | H58: 6.666666667
B59: 2011-11-04 | C59: Suzanne Ricks | D59: Edging | E59: 5 | F59: 3.333333333 | G59: 0 | H59: 1.666666667
B60: 2011-11-11 | C60: Suzanne Ricks | D60: Edging | E60: 5 | F60: 0 | G60: 3.333333333 | H60: 1.666666667
B61: 2011-11-18 | C61: Suzanne Ricks | D61: Edging | E61: 5 | F61: 0 | G61: 3.333333333 | H61: 1.666666667
B62: 2011-11-25 | C62: Suzanne Ricks | D62: Edging | E62: 5 | F62: 1.666666667 | G62: 1.666666667 | H62: 1.666666667

Sheet Paid
A1: WorkID | B1: Date | C1: Customer | D1: Service | E1: Amount | F1: Bruce | G1: Ryan | H1: LOM | I1: Check Number
B2: 2011-11-04 | C2: Lance Kirkland | D2: Edging | E2: 5 | F2: 3.333333333 | G2: 0 | H2: 1.666666667 | I2: 4582
B3: 2011-11-11 | C3: Lance Kirkland | D3: Edging | E3: 5 | F3: 3.333333333 | G3: 0 | H3: 1.666666667 | I3: 4582
B4: 2011-11-18 | C4: Lance Kirkland | D4: Edging | E4: 5 | F4: 0 | G4: 3.333333333 | H4: 1.666666667 | I4: 4582
B5: 2011-11-25 | C5: Lance Kirkland | D5: Edging | E5: 5 | F5: 1.666666667 | G5: 1.666666667 | H5: 1.666666667 | I5: 4582
B6: 2011-11-07 | C6: Brian Jensen | D6: Mowing | E6: 55 | F6: 0 | G6: 36.66666667 | H6: 18.33333333 | I6: 7642
B7: 2011-11-14 | C7: Brian Jensen | D7: Mowing | E7: 55 | F7: 36.66666667 | G7: 0 | H7: 18.33333333 | I7: 7642
B8: 2011-11-21 | C8: Brian Jensen | D8: Mowing | E8: 55 | F8: 18.33333333 | G8: 18.33333333 | H8: 18.33333333 | I8: 7642

Sheet Non LOM Work (hidden)
A1: WorkID | B1: Date | C1: Customer | D1: Service | E1: Amount | F1: Bruce | G1: Ryan | H1: Check Number
B2: 2011-09-21 | C2: Shirley Valyupek | D2: Edging | E2: 20 | F2: 0 | G2: 20
B3: 2011-10-10 | C3: Linda West | D3: Mowing | E3: 20 | F3: 10 | G3: 10
B4: 2011-10-17 | C4: Bob Sabin | D4: Mowing | E4: 20 | F4: 0 | G4: 20
B5: 2011-10-19 | C5: Chuck Taylor | D5: Mowing | E5: 50 | F5: 0 | G5: 50
B6: 2011-10-21 | C6: Linda West | D6: Mowing | E6: 25 | F6: 25 | G6: 0
B7: 2011-10-21 | C7: Outback | D7: Mowing | E7: 15 | F7: 15 | G7: 0
B8: 2011-10-21 | C8: Jeffs | D8: Mowing | E8: 30 | F8: 30 | G8: 0
B9: 2011-10-10 | C9: Chuck Taylor | D9: Mowing | E9: 50 | F9: 50 | G9: 0
B10: 2011-10-14 | C10: Arthur Welch | D10: Mowing | E10: 25 | F10: 25 | G10: 0
B11: 2011-10-07 | C11: Jeffs | D11: Mowing | E11: 30 | F11: 30 | G11: 0
B12: 2011-10-07 | C12: Outback | D12: Mowing | E12: 15 | F12: 15 | G12: 0
B13: 2011-10-29 | C13: Chuck Taylor | D13: Mowing | E13: 50 | F13: 0 | G13: 50
C29: Lance Black has $5 Credit from Check Number 7169

Sheet Non LOM Billed (hidden)
A1: WorkID | B1: Date | C1: Customer | D1: Service | E1: Amount | F1: Bruce | G1: Ryan | H1: Check Number
B2: 2011-09-16 | C2: Arthur Welch | D2: Mowing | E2: 25 | F2: 25 | G2: 0
B3: 2011-08-11 | C3: Linda West | D3: Mowing | E3: 25 | F3: 0 | G3: 25
B4: 2011-08-17 | C4: Linda West | D4: Mowing | E4: 25 | F4: 0 | G4: 25
B5: 2011-09-02 | C5: Linda West | D5: Mowing | E5: 25 | F5: 25 | G5: 0
B6: 2011-09-09 | C6: Linda West | D6: Mowing | E6: 25 | F6: 25 | G6: 0
B7: 2011-09-16 | C7: Linda West | D7: Mowing | E7: 25 | F7: 25 | G7: 0
B8: 2011-09-23 | C8: Linda West | D8: Mowing | E8: 25 | F8: 25 | G8: 0
B9: 2011-09-30 | C9: Linda West | D9: Mowing | E9: 25 | F9: 25 | G9: 0

Sheet Non LOM Paid (hidden)
A1: WorkID | B1: Date | C1: Customer | D1: Service | E1: Amount | F1: Bruce | G1: Ryan | H1: Check Number
B2: 2011-04-05 | C2: Boyer | D2: Aerating | E2: 35 | F2: =E2*2/3 -> 23.33333333 | H2: Cash
B3: 2011-04-05 | C3: Linda Priest | D3: Aerating | E3: 20 | F3: =E3*2/3 -> 13.33333333 | H3: Cash
B4: 2011-03-23 | C4: Arthur Welch | D4: Aerating | E4: 30 | F4: 30 | H4: 353
B5: 2011-04-19 | C5: Arthur Welch | D5: Mowing | E5: 25 | F5: 25 | H5: 353
B6: 2011-05-16 | C6: Jim Wall | D6: Edging | E6: 20 | F6: 20 | H6: Cash
F7: =SUM(F2:F6) -> 111.6666667
B10: 2011-04-05 | C10: Linda West | D10: Mowing | E10: 25 | F10: 25 | H10: 1651
B11: 2011-04-14 | C11: Linda West | D11: Mowing | E11: 25 | F11: 25 | H11: 1651
B12: 2011-04-23 | C12: Linda West | D12: Mowing | E12: 25 | F12: 25 | H12: 1651
B13: 2011-05-02 | C13: Linda West | D13: Mowing | E13: 25 | F13: 25 | H13: 1651
B14: 2011-05-10 | C14: Linda West | D14: Mowing | E14: 25 | F14: 25 | H14: 1651
B15: 2011-05-16 | C15: Linda West | D15: Mowing | E15: 25 | F15: =E15 -> 25 | H15: 1651
B16: 2011-05-24 | C16: Linda West | D16: Mowing | E16: 25 | F16: =E16 -> 25 | H16: 1651
B17: 2011-05-31 | C17: Linda West | D17: Mowing | E17: 25 | F17: =E17 -> 25 | H17: 1651
B18: 2011-05-16 | C18: Welch Neighbor | D18: Mowing | E18: 10 | F18: 10 | H18: Cash
B19: 2011-05-23 | C19: Welch Neighbor | D19: Mowing | E19: 10 | F19: 10 | H19: Cash
B20: 2011-05-31 | C20: Welch Neighbor | D20: Mowing | E20: 10 | F20: 10 | H20: Cash
B21: 2011-05-09 | C21: Welch Neighbor | D21: Trimming | E21: 5 | F21: 5 | H21: Cash
B22: 2011-06-13 | C22: Arthur Welch | D22: Mowing | E22: 25 | F22: =E22 -> 25 | H22: 365
B23: 2011-05-02 | C23: Arthur Welch | D23: Mowing | E23: 25 | F23: 25 | H23: 365
B24: 2011-05-16 | C24: Arthur Welch | D24: Mowing | E24: 25 | F24: =E24 -> 25 | H24: 365
B25: 2011-05-31 | C25: Arthur Welch | D25: Mowing | E25: 25 | F25: =E25 -> 25 | H25: 365
B26: 2011-05-02 | C26: Lance Black | D26: Edging | E26: 5 | F26: 5 | H26: 7065
B27: 2011-05-10 | C27: Lance Black | D27: Edging | E27: 5 | F27: 5 | H27: 7065
B28: 2011-05-24 | C28: Lance Black | D28: Edging | E28: 5 | F28: =E28 -> 5 | H28: 7065
B29: 2011-04-14 | C29: Lance Black | D29: Edging | E29: 5 | F29: =E29*2/3 -> 3.333333333 | H29: 7065
F30: =SUM(F10:F29) -> 353.3333333 | I30: Recognized in Quickbooks 6/26/2011
B33: 2011-06-06 | C33: Welch Neighbor | D33: Mowing | E33: 10 | F33: =E33 -> 10 | H33: Cash
B34: 2011-06-13 | C34: Welch Neighbor | D34: Mowing | E34: 10 | F34: 10 | H34: Cash
B35: 2011-06-20 | C35: Welch Neighbor | D35: Mowing | E35: 10 | F35: 10 | H35: Cash
B36: 2011-06-27 | C36: Welch Neighbor | D36: Mowing | E36: 10 | F36: 10 | H36: Cash
B37: 2011-06-04 | C37: Outback | D37: Mowing | E37: 15 | F37: 15
B38: 2011-06-10 | C38: Outback | D38: Mowing | E38: 15 | F38: 15
B39: 2011-06-18 | C39: Outback | D39: Mowing | E39: 15 | F39: 15
B40: 2011-06-24 | C40: Outback | D40: Mowing | E40: 15 | F40: 15
B41: 2011-06-30 | C41: Outback | D41: Mowing | E41: 15 | F41: 15
B42: 2011-06-10 | C42: Darnell Jeffs | D42: Mowing | E42: 30 | F42: =E42 -> 30
B43: 2011-06-18 | C43: Darnell Jeffs | D43: Mowing | E43: 30 | F43: =E43 -> 30
B44: 2011-06-24 | C44: Darnell Jeffs | D44: Mowing | E44: 30 | F44: =E44 -> 30
B45: 2011-06-30 | C45: Darnell Jeffs | D45: Mowing | E45: 30 | F45: =E45 -> 30
B46: 2011-04-14 | C46: Bob Sabin | D46: Mowing | E46: 20 | F46: 20 | H46: 833
B47: 2011-04-23 | C47: Bob Sabin | D47: Mowing | E47: 20 | F47: 20 | H47: 833
B48: 2011-05-02 | C48: Bob Sabin | D48: Mowing | E48: 20 | F48: 20 | H48: 833
B49: 2011-05-10 | C49: Bob Sabin | D49: Mowing | E49: 20 | F49: 20 | H49: 833
B50: 2011-05-16 | C50: Bob Sabin | D50: Mowing | E50: 20 | F50: =E50 -> 20 | H50: 833
B51: 2011-06-06 | C51: Lance Black | D51: Edging | E51: 5 | F51: =E51 -> 5 | H51: 7080
B52: 2011-06-13 | C52: Lance Black | D52: Edging | E52: 5 | F52: =E52 -> 5 | H52: 7080
B53: 2011-06-28 | C53: Lance Black | D53: Edging | E53: 5 | F53: =E53 -> 5 | H53: 7080
B54: 2011-07-06 | C54: Stafford | D54: Mowing | E54: 10 | F54: 0 | G54: 10 | H54: Cash
B55: 2011-07-11 | C55: Stafford | D55: Mowing | E55: 10 | F55: 0 | G55: 10 | H55: Cash
B56: 2011-07-18 | C56: Stafford | D56: Mowing | E56: 10 | F56: 0 | G56: 10 | H56: Cash
B57: 2011-07-25 | C57: Stafford | D57: Mowing | E57: 10 | F57: - | G57: 10 | H57: Cash
B58: 2011-07-06 | C58: Linda West | D58: Mowing | E58: 25 | F58: 0 | G58: 25 | H58: 1712
B59: 2011-07-12 | C59: Linda West | D59: Mowing | E59: 25 | F59: 0 | G59: 25 | H59: 1712
B60: 2011-07-19 | C60: Linda West | D60: Mowing | E60: 25 | F60: 0 | G60: 25 | H60: 1712
B61: 2011-07-26 | C61: Linda West | D61: Mowing | E61: 25 | F61: 0 | G61: 25 | H61: 1712
B62: 2011-06-06 | C62: Linda West | D62: Mowing | E62: 25 | F62: =E62 -> 25 | H62: 1712
B63: 2011-06-13 | C63: Linda West | D63: Mowing | E63: 25 | F63: =E63 -> 25 | H63: 1712
B64: 2011-06-21 | C64: Linda West | D64: Mowing | E64: 25 | F64: =E64 -> 25 | H64: 1712
B65: 2011-06-28 | C65: Linda West | D65: Mowing | E65: 25 | F65: =E65 -> 25 | H65: 1712
B66: 2011-08-02 | C66: Linda West | D66: Mowing | E66: 25 | F66: 0 | G66: 25 | H66: 1712
F67: =SUM(F33:F66) -> 450 | G67: =SUM(G33:G66) -> 165 | H67: Paid Ryan w/ check: 1112
H68: Recognized in Quickbooks 7/31/2011
B72: 2011-07-09 | C72: Darnell Jeffs | D72: Mowing | E72: 30 | F72: 30 | G72: 0
B73: 2011-07-15 | C73: Darnell Jeffs | D73: Mowing | E73: 30 | F73: 0 | G73: 30
B74: 2011-07-22 | C74: Darnell Jeffs | D74: Mowing | E74: 30 | F74: 30 | G74: 0
B75: 2011-07-29 | C75: Darnell Jeffs | D75: Mowing | E75: 30 | F75: 30 | G75: 0
B76: 2011-07-09 | C76: Outback | D76: Mowing | E76: 15 | F76: 15 | G76: 0
B77: 2011-07-15 | C77: Outback | D77: Mowing | E77: 15 | F77: 0 | G77: 15
B78: 2011-07-22 | C78: Outback | D78: Mowing | E78: 15 | F78: 15 | G78: 0
B79: 2011-06-27 | C79: Arthur Welch | D79: Mowing | E79: 25 | F79: =E79 -> 25 | G79: 0 | H79: 385
B80: 2011-07-11 | C80: Arthur Welch | D80: Mowing | E80: 25 | F80: 0 | G80: 25 | H80: 385
B81: 2011-07-26 | C81: Arthur Welch | D81: Mowing | E81: 25 | F81: 0 | G81: 25 | H81: 385
B82: 2011-07-14 | C82: Parker Garlitz | D82: Trimming bushes in front of house (5.5 hours) | E82: =5.5*20 -> 110 | G82: 110 | H82: 0004425406
B83: 2011-07-21 | C83: Parker Garlitz | D83: Removing bushes (1.5 hours) | E83: 30 | G83: 30 | H83: 0004425406
B84: 2011-07-29 | C84: Parker Garlitz | D84: Removing bushes (4 hours) | E84: 80 | G84: 80 | H84: 0004425406
B85: 2011-07-06 | C85: Lance Black | D85: Edging | E85: 5 | F85: 0 | G85: 5 | H85: 7087
B86: 2011-07-12 | C86: Lance Black | D86: Edging | E86: 5 | F86: 0 | G86: 5 | H86: 7087
B87: 2011-07-19 | C87: Lance Black | D87: Edging | E87: 5 | F87: 0 | G87: 5 | H87: 7087
B88: 2011-07-26 | C88: Lance Black | D88: Edging | E88: 5 | F88: 0 | G88: 5 | H88: 7087
B89: 2011-05-24 | C89: Bob Sabin | D89: Mowing | E89: 20 | F89: =E89 -> 20 | H89: 930 | I89: But he made the check to LOM. I'm going to try and cash it anyways.
B90: 2011-06-06 | C90: Bob Sabin | D90: Mowing | E90: 20 | F90: =E90 -> 20 | H90: 930
B91: 2011-06-13 | C91: Bob Sabin | D91: Mowing | E91: 20 | F91: =E91 -> 20 | H91: 930 | I91: $80 of this check is for Bruce. Just have Bruce pay me $80 less in the future. I paid tithin on the $130 I received.
B92: 2011-06-28 | C92: Bob Sabin | D92: Mowing | E92: 20 | F92: =E92 -> 20 | H92: 930
B93: 2011-07-06 | C93: Bob Sabin | D93: Mowing | E93: 20 | F93: 0 | G93: 20 | H93: 930
B94: 2011-07-12 | C94: Bob Sabin | D94: Mowing | E94: 20 | F94: 0 | G94: 20 | H94: 930
B95: 2011-07-19 | C95: Bob Sabin | D95: Mowing (first half) | E95: 10 | F95: 0 | G95: 10 | H95: 930
B96: 2011-08-01 | C96: Stafford | D96: Mowing | E96: 10 | F96: 0 | G96: 10 | H96: CASH
B97: 2011-08-09 | C97: Stafford | D97: Mowing | E97: 10 | F97: 0 | G97: 10 | H97: CASH
B98: 2011-08-15 | C98: Stafford | D98: Mowing | E98: 10 | F98: 0 | G98: 10 | H98: CASH
B99: 2011-08-22 | C99: Stafford | D99: Mowing | E99: 10 | F99: 0 | G99: 10 | H99: CASH
F100: =SUM(F72:F99) -> 225 | G100: =SUM(G72:G99) -> 425
B103: 2011-08-05 | C103: Outback | D103: Mowing | E103: 15 | F103: 15 | G103: 0
B104: 2011-08-12 | C104: Outback | D104: Mowing | E104: 15 | F104: 15 | G104: 0
B105: 2011-08-19 | C105: Outback | D105: Mowing | E105: 15 | F105: 15 | G105: 0
B106: 2011-08-29 | C106: Outback | D106: Mowing | E106: 15 | F106: 15 | G106: 0
B107: 2011-08-05 | C107: Darnell Jeffs | D107: Mowing | E107: 30 | F107: 30 | G107: 0
B108: 2011-08-12 | C108: Darnell Jeffs | D108: Mowing | E108: 30 | F108: 30 | G108: 0
B109: 2011-08-19 | C109: Darnell Jeffs | D109: Mowing | E109: 30 | F109: 30 | G109: 0
B110: 2011-08-29 | C110: Darnell Jeffs | D110: Mowing | E110: 30 | F110: 30 | G110: 0
B111: 2011-08-09 | C111: Arthur Welch | D111: Mowing | E111: 25 | F111: 0 | G111: 25 | H111: 402
B112: 2011-08-22 | C112: Arthur Welch | D112: Mowing | E112: 25 | F112: 0 | G112: 25 | H112: 402
B113: 2011-09-03 | C113: Arthur Welch | D113: Mowing | E113: 25 | F113: 12.5 | G113: 12.5 | H113: 402 | J113: $37.50 of this is for Bruce
B114: 2011-09-16 | C114: Arthur Welch | D114: Mowing | E114: 25 | F114: 25 | H114: 402
B115: 2011-07-19 | C115: Bob Sabin | D115: Mowing (second half) | E115: 10 | F115: 0 | G115: 10 | H115: 788
B116: 2011-07-26 | C116: Bob Sabin | D116: Mowing | E116: 20 | F116: 0 | G116: 20 | H116: 788
B117: 2011-08-02 | C117: Bob Sabin | D117: Mowing | E117: 20 | F117: 0 | G117: 20 | H117: 788
B118: 2011-08-11 | C118: Bob Sabin | D118: Mowing | E118: 20 | F118: 0 | G118: 20 | H118: 788
B119: 2011-08-23 | C119: Bob Sabin | D119: Mowing | E119: 20 | F119: 0 | G119: 20 | H119: 788 | J119: Lavar Cardon wants us to start the Storage place now. E-mail bills to "Emily Humes" with e-mail address: astoragesecret@aol.com and a carbon copy to lcardon1944@msn.com. Address of place is 1201 W. Center, Provo, UT, Price= $20/week. Mow his house next Spring, price for house= $45/week.
B120: 2011-08-29 | C120: Stafford | D120: Mowing | E120: 10 | F120: 0 | G120: 10 | H120: Cash
B121: 2011-09-05 | C121: Stafford | D121: Mowing | E121: 10 | F121: 0 | G121: 10 | H121: Cash
B122: 2011-09-12 | C122: Stafford | D122: Mowing | E122: 10 | F122: 0 | G122: 10 | H122: Cash
B123: 2011-08-02 | C123: Lance Black | D123: Edging | E123: 5 | F123: 0 | G123: 5 | H123: 1091
B124: 2011-08-11 | C124: Lance Black | D124: Edging | E124: 5 | F124: 0 | G124: 5 | H124: 1091 | K124: =1322.76-37.5 -> 1285.26
B125: 2011-08-23 | C125: Lance Black | D125: Edging | E125: 5 | F125: 0 | G125: 5 | H125: 1091
E126: =SUM(E103:E125) -> 415 | F126: =SUM(F103:F125) -> 217.5
B129: 2011-09-06 | C129: Jeffs | D129: Mowing | E129: 30 | F129: 30 | G129: 0
B130: 2011-09-14 | C130: Jeffs | D130: Mowing | E130: 30 | F130: 20 | G130: 0
B131: 2011-09-22 | C131: Jeffs | D131: Mowing | E131: 30 | F131: 30 | G131: 0
B132: 2011-09-29 | C132: Jeffs | D132: Mowing | E132: 30 | F132: 30 | G132: 0
B133: 2011-09-06 | C133: Outback | D133: Mowing | E133: 15 | F133: 15 | G133: 0
B134: 2011-09-14 | C134: Outback | D134: Mowing | E134: 15 | F134: 15 | G134: 0
B135: 2011-09-22 | C135: Outback | D135: Mowing | E135: 15 | F135: 15 | G135: 0
B136: 2011-09-29 | C136: Outback | D136: Mowing | E136: 15 | F136: 15 | G136: 0
B137: 2011-09-05 | C137: Bob Sabin | D137: Mowing | E137: 20 | F137: 0 | G137: 20 | H137: 236
B138: 2011-09-19 | C138: Bob Sabin | D138: Mowing | E138: 20 | F138: 0 | G138: 20 | H138: 236
B140: 2011-09-24 | C140: Chuck Taylor | D140: Mowing | E140: 50 | F140: 25 | G140: 25 | H140: 9179 | I140: This check was made out to LOM. Bruce cashed it. He owes Karl
B141: 2011-09-30 | C141: Chuck Taylor | D141: Mowing | E141: 50 | F141: 50 | G141: 0 | H141: 9179
B142: 2011-10-23 | C142: Roger Davis | D142: Aerating | E142: 35 | F142: 35 | G142: 0 | H142: 11923
B143: 2011-09-05 | C143: Lance Black | D143: Edging | E143: 5 | F143: 0 | G143: 5 | H143: 7169 | I143: The check 7169 was for $20. He has $5 credit.
B144: 2011-09-19 | C144: Lance Black | D144: Edging | E144: 5 | F144: 0 | G144: 5 | H144: 7169
B145: 2011-10-17 | C145: Lance Black | D145: Edging | E145: 5 | F145: 0 | G145: 5 | H145: 7169
B146: 2011-08-27 | C146: John Czirr | D146: Trimming | E146: 20 | F146: 0 | G146: 20 | H146: 0 | I146: 5536
B147: 2011-10-29 | C147: John Czirr | D147: Trimming | E147: 20 | F147: 0 | G147: 20 | H147: 0 | I147: 5536 + $10 Cash

Sheet Miles (hidden)
A1: Date | B1: Miles

Sheet Estes (hidden)
A1: WorkID | B1: Date | C1: Customer | D1: Service | E1: Amount | F1: Bruce | G1: Ryan | H1: Check Number
B2: 2011-05-10 | C2: Ben Estes | D2: Pre-Payment | E2: -700
B3: 2011-05-10 | C3: Ben Estes | D3: Mowing | E3: 25 | F3: 25
B4: 2011-05-11 | C4: Ben Estes | D4: Mowing | E4: 25 | F4: 25
B5: 2011-05-16 | C5: Ben Estes | D5: Mowing | E5: 25 | F5: =E5 -> 25
B6: 2011-05-19 | C6: Ben Estes | D6: Cutting Edge | E6: 15 | F6: 15
B7: 2011-05-24 | C7: Ben Estes | D7: Mowing | E7: 25 | F7: 25
B8: 2011-05-24 | C8: Ben Estes | D8: Pruning | E8: 25 | F8: 25
B9: 2011-05-28 | C9: Ben Estes | D9: Weeding/Cutting Edge | E9: 40 | F9: 40
B10: 2011-05-31 | C10: Ben Estes | D10: Mowing | E10: 25 | F10: 25
B11: 2011-06-01 | C11: Ben Estes | D11: Weeding | E11: 7.5 | F11: 7.5
B12: 2011-06-13 | C12: Ben Estes | D12: Mowing | E12: 25 | F12: =E12 -> 25
B13: 2011-06-06 | C13: Ben Estes | D13: Mowing | E13: 25 | F13: 25
B14: 2011-06-13 | C14: Ben Estes | D14: Spraying Weeds | E14: 25 | F14: 25
B15: 2011-06-21 | C15: Ben Estes | D15: Mowing | E15: 25 | F15: 25
B16: 2011-06-25 | C16: Ben Estes | D16: Weeding | E16: 7.5 | F16: 7.5
B17: 2011-06-26 | C17: Tithing | E17: 0 | F17: 0 | G17: Recognized $320 for tithing
B18: 2011-06-27 | C18: Ben Estes | D18: Mowing | E18: 25 | F18: 25
B19: 2011-06-28 | C19: Ben Estes | D19: Weeding/Rototilling/Installing Fabric | E19: =15*5 -> 75 | F19: 75
B20: 2011-07-06 | C20: Ben Estes | D20: Mowing | E20: 25 | F20: 0 | G20: 25
B21: 2011-07-12 | C21: Ben Estes | D21: Mowing | E21: 25 | F21: 0 | G21: 25
B22: 2011-07-19 | C22: Ben Estes | D22: Mowing | E22: 25 | F22: 0 | G22: 25
B23: 2011-07-26 | C23: Ben Estes | D23: Mowing | E23: 25 | F23: 0 | G23: 25
B24: 2011-08-11 | C24: Ben Estes | D24: Mowing | E24: 25 | F24: 0 | G24: 25 | I24: Paid Ryan for all of Estes' with check#1115
B25: 2011-08-13 | C25: Ben Estes | D25: Spraying Weeds on sidewalk and west of driveway | E25: 15 | F25: 0 | G25: 15
B26: 2011-08-14 | C26: Tithing | E26: 0 | F26: 0 | G26: Recognized tithing for everything above
B27: 2011-08-23 | C27: Ben Estes | D27: Mowing | E27: 25 | F27: 0 | G27: 25
B28: 2011-08-25 | C28: Tithing | E28: 0 | F28: 0 | G28: Recognized tithing for everything above
B29: 2011-09-05 | C29: Ben Estes | D29: Mowing | E29: 25 | F29: 0 | G29: 25
B30: 2011-09-26 | C30: Ben Estes | D30: Mowing | E30: 25 | F30: 0 | G30: 25
B31: 2011-10-17 | C31: Ben Estes | D31: Mowing | E31: 25 | F31: 0 | G31: 25
D34: Funds Remaining | E34: =SUM(E2:E31) -> -40

Sheet Sheet1 (hidden)
A1: Bruce | B1: =SUM('Non LOM Paid'!F62:F65,'Non LOM Paid'!F79:F79,#REF!,#REF!,#REF!) -> 

Sheet Bill
B1: Lawn-O-Matic | E1: Invoice
B2: Professional Lawncare Service
B3: 975 E 800 N
B4: Mapleton, UT 84664
B8: Bill To
B9: Suzanne Ricks
B10: 426 N. 150 W. | E10: Invoice Date: | F10: =NOW() -> 2011-12-08T10:44:24.190
B11: Mapleton, UT 84664 | E11: Due Date: | F11: =F10+15 -> 2011-12-23T10:44:24.190
B15: Date | C15: Service | F15: Amount
B16: 2011-11-04 | C16: Edging | F16: 5
B17: 2011-11-11 | C17: Edging | F17: 5
B18: 2011-11-18 | C18: Edging | F18: 5
B19: 2011-11-25 | C19: Edging | F19: 5
E28: Balance Due: | F28: =SUM(F16:F27) -> 20
B32: Payment is due 15 days from the invoice date. Late payments will result in a $10 late fee. Please make all checks payable to "Lawn-O-Matic". If you have any questions concerning your bill, please call us at (801)-427-2642.

Sheet Payments
A1: Customer | B1: Date | C1: Check Number | D1: Amount
A2: Lance Kirkland | B2: 2011-11-07 | C2: 4582 | D2: 75
A3: Lance Kirkland | B3: 2011-11-07 | C3: 4567 | D3: 75
A4: Brian Jensen | B4: 2011-11-07 | C4: 7642 | D4: 200

Sheet Customers
A1: CustomerName | B1: Active Customer | C1: Day | D1: Freqency | E1: Amount | F1: Service | G1: Address | H1: City | I1: State | J1: Zip | K1: Phone | L1: Email
A2: Amy Lundmark | B2: Y | C2: Monday | D2: Weekly | E2: 30 | F2: Mowing | G2: 955 N. 130 E. | H2: Springville | I2: UT | J2: 84663 | K2: 801-489-7557
A3: Arthur Waite | B3: Y | C3: Wednesday | D3: Weekly | E3: 25 | F3: Mowing | G3: 452 S. 900 E. | H3: Mapleton | I3: UT | J3: 84664 | K3: 801-489-2866
A4: Ben Jones | B4: Y | C4: Monday | D4: Weekly | E4: 45 | F4: Mowing | G4: 910 N. 600 E. | H4: Mapleton | I4: UT | J4: 84664 | K4: 801-489-7853
A5: Bob Kopps | B5: Y | C5: Wednesday | D5: Weekly | E5: 20 | F5: Mowing | G5: 975 E. 800 N. | H5: Mapleton | I5: UT | J5: 84664 | K5: 801-491-3785
A6: Brian Jensen | B6: Y | C6: Monday | D6: Weekly | E6: 55 | F6: Mowing | G6: 401 E. 1200 N. | H6: Mapleton | I6: UT | J6: 84664 | K6: 801-491-9625
A7: Daniel Childs | B7: Y | C7: Wednesday | D7: Weekly | E7: 30 | F7: Mowing | G7: 1532 E. 900 S. | H7: Springville | I7: UT | J7: 84663 | K7: 801-491-8564
A8: Dian Parks | B8: Y | C8: Wednesday | D8: Weekly | E8: 30 | F8: Mowing | G8: 142 E. 950 S. | H8: Springville | I8: UT | J8: 84663 | K8: 801-489-4658
A9: Garrett Wall | B9: Y | C9: Wednesday | D9: Weekly | E9: 3.75 | F9: Edging | G9: 148 E. 950 S. | H9: Springville | I9: UT | J9: 84663
A10: Harvey Maw | B10: Y | C10: Wednesday | D10: Weekly | E10: 30 | F10: Mowing | G10: 689 N. 1200 E. | H10: Mapleton | I10: UT | J10: 84664 | K10: 801-489-8978
A11: Jan Temple | B11: Y | C11: Wednesday | D11: Weekly | E11: 30 | F11: Mowing | G11: 2892 Oneida Ln | H11: Provo | I11: UT | J11: 84606 | K11: 801-375-6571
A12: Jeff Dewey | B12: Y | C12: Friday | D12: Weekly | E12: 25 | F12: Mowing | G12: 1078 S. 600 E. | H12: Springville | I12: UT | J12: 84663 | K12: 801-491-3159
A13: John Paulsen | B13: Y | C13: Monday | D13: Weekly | E13: 45 | F13: Mowing | G13: 130 S. 400 E. | H13: Mapleton | I13: UT | J13: 84664 | K13: 801-489-8834
A14: Lance Kirkland | B14: Y | C14: Friday | D14: Weekly | E14: 5 | F14: Edging | G14: 398 N. 800 W. | H14: Mapleton | I14: UT | J14: 84664 | K14: 801-491-7534
A15: Linda Brockbank | B15: Y | C15: Monday | D15: Weekly | E15: 25 | F15: Mowing | G15: 6231 N. 800 E. | H15: Mapleton | I15: UT | J15: 84664 | K15: 801-491-1564
A16: Parker Call | B16: Y | C16: Friday | D16: Weekly | E16: 25 | F16: Mowing | G16: 558 S. 400 E. | H16: Mapleton | I16: UT | J16: 84664
A17: Richard Allen | B17: Y | C17: Monday | D17: Weekly | E17: 30 | F17: Mowing | G17: 168 E. 970 S. | H17: Springville | I17: UT | J17: 84663
A18: Ron Applegate | B18: Y | C18: Monday | D18: Weekly | E18: 30 | F18: Mowing | G18: 210 E. 1600 S. | H18: Mapleton | I18: UT | J18: 84664
A19: Rusty Jenkins | B19: Y | C19: Friday | D19: Weekly | E19: 30 | F19: Mowing | G19: 462 W. 1200 N. | H19: Mapleton | I19: UT | J19: 84664 | K19: 801-491-9145
A20: Shirley Clark | B20: Y | C20: Friday | D20: Weekly | E20: 7.5 | F20: Edging | G20: 449 S. 400 W. | H20: Mapleton | I20: UT | J20: 84664
A21: Susan Singley | B21: Y | C21: Friday | D21: Weekly | E21: 30 | F21: Mowing | G21: 1239 W. 750 S. | H21: Springville | I21: UT | J21: 84663 | K21: 801-491-8615
A22: Suzanne Ricks | B22: Y | C22: Friday | D22: Weekly | E22: 5 | F22: Edging | G22: 426 N. 150 W. | H22: Mapleton | I22: UT | J22: 84664 | K22: 801-489-7248
A23: stop

Sheet Sent
A1: Date Sent | B1: Customer | C1: File Name
A2: Bad Email | B2: Suzanne Ricks | C2: C:\Users\Sommerfeldts\Documents\LOM\Suzanne Ricks_Nov.pdf
A3: 2011-11-25T12:33:46 | B3: Brian Jensen | C3: C:\Users\Sommerfeldts\Documents\LOM\Brian Jensen_Nov.pdf
A4: 2011-11-25T12:33:52 | B4: Daniel Childs | C4: C:\Users\Sommerfeldts\Documents\LOM\Daniel Childs_Nov.pdf
A5: 2011-11-25T12:33:58 | B5: Dian Parks | C5: C:\Users\Sommerfeldts\Documents\LOM\Dian Parks_Nov.pdf
A6: 2011-11-25T12:34:09 | B6: Garrett Wall | C6: C:\Users\Sommerfeldts\Documents\LOM\Garrett Wall_Nov.pdf
A7: 2011-11-25T12:34:15 | B7: Harvey Maw | C7: C:\Users\Sommerfeldts\Documents\LOM\Harvey Maw_Nov.pdf
A8: 2011-11-25T12:34:21 | B8: Jan Temple | C8: C:\Users\Sommerfeldts\Documents\LOM\Jan Temple_Nov.pdf
A9: 2011-11-25T12:34:27 | B9: Jeff Dewey | C9: C:\Users\Sommerfeldts\Documents\LOM\Jeff Dewey_Nov.pdf
A10: 2011-11-25T12:34:34 | B10: John Paulsen | C10: C:\Users\Sommerfeldts\Documents\LOM\John Paulsen_Nov.pdf
A11: 2011-11-25T12:34:40 | B11: Lance Kirkland | C11: C:\Users\Sommerfeldts\Documents\LOM\Lance Kirkland_Nov.pdf
A12: 2011-11-25T12:34:47 | B12: Linda Brockbank | C12: C:\Users\Sommerfeldts\Documents\LOM\Linda Brockbank_Nov.pdf
A13: 2011-11-25T12:34:55 | B13: Richard Allen | C13: C:\Users\Sommerfeldts\Documents\LOM\Richard Allen_Nov.pdf
A14: 2011-11-25T12:35:01 | B14: Rusty Jenkins | C14: C:\Users\Sommerfeldts\Documents\LOM\Rusty Jenkins_Nov.pdf
A15: 2011-11-25T12:35:07 | B15: Shirley Clark | C15: C:\Users\Sommerfeldts\Documents\LOM\Shirley Clark_Nov.pdf
A16: 2011-11-25T12:35:13 | B16: Susan Singley | C16: C:\Users\Sommerfeldts\Documents\LOM\Susan Singley_Nov.pdf
A17: 2011-11-25T12:35:20 | B17: Suzanne Ricks | C17: C:\Users\Sommerfeldts\Documents\LOM\Suzanne Ricks_Nov.pdf
A18: 2011-11-25T12:52:56 | B18: Bob Kopps | C18: C:\Users\Sommerfeldts\Documents\LOM\Bob Kopps_Nov.pdf
A19: 2011-11-25T14:24:17 | B19: Suzanne Ricks | C19: C:\Users\Sommerfeldts\Documents\LOM\Suzanne Ricks_Nov.pdf

Sheet Settings
A5: Save to Folder: | B5: C:\Users\Sommerfeldts\Documents\LOM
